[Event "Cracovia Festival-A 2023"]
[Site "Krakow"]
[Date "2023.12.28"]
[Round "2.31"]
[White "Grochol, Kamil"]
[Black "Ernst, Robert"]
[Result "1/2-1/2"]
[ECO "B48"]
[WhiteElo "2101"]
[BlackElo "2271"]
[Annotator "ChessBase"]
[PlyCount "84"]
[EventDate "2023.12.24"]
[EventType "swiss"]
[EventCountry "POL"]
[SourceTitle "playchess.com"]
[Source "ChessBase"]
[SourceQuality "1"]
[TimeControl "40/5400+30:1800+30"]

1. e4 {[%emt 0:00:09]} c5 {[%emt 0:00:11]} 2. Nf3 {[%emt 0:00:15]} e6 {[%emt 0:00:10]} 3. d4 {[%emt 0:00:08]} cxd4 {[%emt 0:00:10]} 4. Nxd4 {[%emt 0:00:13]} Nc6 {[%emt 0:00:09]} 5. Nc3 {[%emt 0:00:08]} Qc7 {[%emt 0:00:09]} 6. Be3 {[%emt 0:00:32]} a6 {[%emt 0:00:09]} 7. g4 {[%emt 0:00:30]} h6 {[%emt 0:00:21]} 8. h4 {[%emt 0:00:32]} b5 {[%emt 0:00:07]} 9. Nxc6 {[%emt 0:01:10]} Qxc6 {[%emt 0:00:10]} 10. Qd2 {[%emt 0:09:21]} b4 {[%emt 0:00:09]} 11. Ne2 {[%emt 0:00:34]} Qd6 {[%emt 0:00:05]} 12. Qxd6 {[%emt 0:05:58]} Bxd6 {[%emt 0:00:04]} 13. O-O-O {[%emt 0:00:12]} Bc7 {[%emt 0:03:36]} 14. Bg2 {[%emt 0:05:42]} Bb7 {[%emt 0:04:04]} 15. g5 {[%emt 0:03:14]} a5 {[%emt 0:27:16]} 16. Bd4 {[%emt 0:11:31]} f6 {[%emt 0:10:56]} 17. Kb1 {[%emt 0:04:13]} hxg5 {[%emt 0:11:43]} 18. hxg5 {[%emt 0:00:08]} Rxh1 {[%emt 0:00:06]} 19. Rxh1 {[%emt 0:02:37]} Kf7 {[%emt 0:00:23]} 20. gxf6 {[%emt 0:01:17]} e5 {[%emt 0:04:02]} 21. Be3 {[%emt 0:04:10]} Nxf6 {[%emt 0:00:08]} 22. Ng3 {[%emt 0:01:33]} Ng4 {[%emt 0:10:27]} 23. Bc5 {[%emt 0:11:09]} d6 {[%emt 0:05:33]} 24. Rd1 {[%emt 0:00:52]} Rd8 {[%emt 0:02:29]} 25. Ba7 {[%emt 0:00:49]} Ra8 {[%emt 0:00:06]} 26. Bc5 {[%emt 0:00:14]} Rd8 {[%emt 0:00:05]} 27. Ba7 {[%emt 0:00:26]} g6 {[%emt 0:00:01]} 28. Bf1 {[%emt 0:12:48]} Ra8 {[%emt 0:10:37]} 29. Bc4+ {[%emt 0:00:51]} Kf6 {[%emt 0:00:44]} 30. Bb6 {[%emt 0:00:48]} Bb8 {[%emt 0:00:28]} 31. f3 {[%emt 0:10:13]} Nh6 {[%emt 0:00:01]} 32. Bd8+ {[%emt 0:04:25]} Kg7 {[%emt 0:00:02]} 33. Be7 {[%emt 0:01:20]} Nf7 {[%emt 0:04:18]} 34. Nf5+ {[%emt 0:01:50]} gxf5 {[%emt 0:00:17]} 35. Rg1+ {[%emt 0:00:06]} Kh7 {[%emt 0:04:35]} 36. Bxf7 {[%emt 0:00:12]} Ba7 {[%emt 0:00:41]} 37. Rg3 {[%emt 0:04:17]} fxe4 {[%emt 0:00:54]} 38. fxe4 {[%emt 0:02:17]} Bxe4 {[%emt 0:00:27]} 39. Bf6 {[%emt 0:00:31]} Bf5 {[%emt 0:00:38]} 40. Rg2 {[%emt 0:00:00]} Be3 {[%emt 0:00:00]} 41. Rg7+ {[%emt 0:10:12]} Kh6 {[%emt 0:00:34]} 42. Rg2 {[%emt 0:01:05]} Kh7 1/2-1/2

[Event "Cracovia Festival-A 2023"]
[Site "Krakow"]
[Date "2023.12.28"]
[Round "2.32"]
[White "Klepek, Witold"]
[Black "Warchol, Kamil"]
[Result "1-0"]
[ECO "B48"]
[WhiteElo "2252"]
[BlackElo "2108"]
[Annotator "ChessBase"]
[PlyCount "87"]
[EventDate "2023.12.24"]
[EventType "swiss"]
[EventCountry "POL"]
[SourceTitle "playchess.com"]
[Source "ChessBase"]
[SourceQuality "1"]
[TimeControl "40/5400+30:1800+30"]

1. e4 {[%emt 0:00:45]} c5 {[%emt 0:00:06]} 2. Nf3 {[%emt 0:00:04]} e6 {[%emt 0:00:08]} 3. d4 {[%emt 0:00:10]} cxd4 {[%emt 0:00:06]} 4. Nxd4 {[%emt 0:00:03]} Nc6 {[%emt 0:00:11]} 5. Nc3 {[%emt 0:00:05]} Qc7 {[%emt 0:00:07]} 6. Be3 {[%emt 0:00:24]} a6 {[%emt 0:00:16]} 7. Qf3 {[%emt 0:00:05]} Nf6 {[%emt 0:02:45]} 8. O-O-O {[%emt 0:00:42]} Be7 {[%emt 0:04:41]} 9. Be2 {[%emt 0:11:59]} d6 {[%emt 0:07:52]} 10. Qg3 {[%emt 0:12:16]} O-O {[%emt 0:03:23]} 11. f4 {[%emt 0:02:21]} Rd8 {[%emt 0:06:41]} 12. Kb1 {[%emt 0:09:59]} Nd7 {[%emt 0:06:26]} 13. f5 {[%emt 0:14:30]} Nxd4 {[%emt 0:13:26]} 14. Bxd4 {[%emt 0:00:41]} Bf6 {[%emt 0:01:57]} 15. fxe6 {[%emt 0:00:55]} fxe6 {[%emt 0:02:51]} 16. Bxf6 {[%emt 0:00:37]} Nxf6 {[%emt 0:00:07]} 17. Rhf1 {[%emt 0:08:33]} Qe7 {[%emt 0:06:22]} 18. e5 {[%emt 0:00:38]} dxe5 {[%emt 0:04:09]} 19. Rxd8+ {[%emt 0:02:07]} Qxd8 {[%emt 0:00:07]} 20. Qxe5 {[%emt 0:00:04]} Bd7 {[%emt 0:05:53]} 21. g4 {[%emt 0:08:19]} Qb8 {[%emt 0:05:53]} 22. Qd4 {[%emt 0:00:04]} Qa7 {[%emt 0:05:50]} 23. Qd2 {[%emt 0:05:44]} Bc6 {[%emt 0:09:01]} 24. Bc4 {[%emt 0:01:17]} Re8 {[%emt 0:01:34]} 25. g5 {[%emt 0:01:36]} Nd7 {[%emt 0:02:03]} 26. Qf4 {[%emt 0:06:32]} Qb8 {[%emt 0:00:57]} 27. Bxe6+ {[%emt 0:00:16]} Kh8 {[%emt 0:00:25]} 28. Qxb8 {[%emt 0:00:34]} Nxb8 {[%emt 0:03:17]} 29. Kc1 {[%emt 0:00:34]} Nd7 {[%emt 0:01:33]} 30. Bd5 {[%emt 0:00:15]} Bxd5 {[%emt 0:00:45]} 31. Nxd5 {[%emt 0:00:05]} Kg8 {[%emt 0:00:07]} 32. Nf4 {[%emt 0:04:18]} Nb6 {[%emt 0:02:51]} 33. Nd3 {[%emt 0:01:54]} Nd5 {[%emt 0:01:42]} 34. Kd2 {[%emt 0:00:40]} Rd8 {[%emt 0:01:04]} 35. a3 {[%emt 0:00:28]} b6 {[%emt 0:01:26]} 36. c4 {[%emt 0:01:23]} Nc7 {[%emt 0:00:53]} 37. Kc3 {[%emt 0:00:11]} Ne6 {[%emt 0:00:28]} 38. h4 {[%emt 0:01:31]} Rc8 {[%emt 0:00:39]} 39. b4 {[%emt 0:00:41]} Rc6 {[%emt 0:00:50]} 40. Rf5 {[%emt 0:00:00]} Rc7 {[%emt 0:00:00]} 41. a4 {[%emt 0:01:38]} Rc6 {[%emt 0:03:36]} 42. Rd5 {[%emt 0:01:15]} Kf8 {[%emt 0:00:35]} 43. Ne5 {[%emt 0:00:14]} Rc7 {[%emt 0:00:32]} 44. Rd6 {[%emt 0:00:13]} 1-0

[Event "Cracovia Festival-A 2023"]
[Site "Krakow"]
[Date "2023.12.28"]
[Round "2.33"]
[White "Zarnowski, Krzysztof"]
[Black "Damia, Angelo"]
[Result "0-1"]
[ECO "E00"]
[WhiteElo "2114"]
[BlackElo "2251"]
[Annotator "ChessBase"]
[PlyCount "88"]
[EventDate "2023.12.24"]
[EventType "swiss"]
[EventCountry "POL"]
[SourceTitle "playchess.com"]
[Source "ChessBase"]
[SourceQuality "1"]
[TimeControl "40/5400+30:1800+30"]

1. d4 {[%emt 0:00:03]} Nf6 {[%emt 0:00:08]} 2. c4 {[%emt 0:00:08]} e6 {[%emt 0:00:06]} 3. Nc3 {[%emt 0:00:14]} c5 {[%emt 0:01:04]} 4. d5 {[%emt 0:00:18]} Bd6 {[%emt 0:00:06]} 5. Nf3 {[%emt 0:00:17]} Bc7 {[%emt 0:00:43]} 6. Bg5 {[%emt 0:00:25]} Ba5 {[%emt 0:00:38]} 7. Qc2 {[%emt 0:01:21]} exd5 {[%emt 0:07:15]} 8. cxd5 {[%emt 0:00:07]} O-O {[%emt 0:00:04]} 9. e3 {[%emt 0:00:32]} h6 {[%emt 0:04:34]} 10. Bh4 {[%emt 0:00:06]} g5 {[%emt 0:09:57]} 11. Bg3 {[%emt 0:00:04]} d6 {[%emt 0:00:04]} 12. Bd3 {[%emt 0:08:31]} Na6 {[%emt 0:15:27]} 13. O-O-O {[%emt 0:19:04]} Nb4 {[%emt 0:01:44]} 14. Qb1 {[%emt 0:00:06]} Nxd3+ {[%emt 0:02:34]} 15. Qxd3 {[%emt 0:00:06]} Bxc3 {[%emt 0:04:54]} 16. bxc3 {[%emt 0:01:03]} c4 {[%emt 0:05:05]} 17. Qc2 {[%emt 0:05:27]} Re8 {[%emt 0:01:23]} 18. Rd4 {[%emt 0:01:24]} b5 {[%emt 0:00:13]} 19. h4 {[%emt 0:01:15]} g4 {[%emt 0:00:05]} 20. Ng5 {[%emt 0:02:13]} Qe7 {[%emt 0:04:22]} 21. Bf4 {[%emt 0:10:28]} hxg5 {[%emt 0:11:48]} 22. hxg5 {[%emt 0:00:06]} Ne4 {[%emt 0:00:03]} 23. f3 {[%emt 0:00:37]} Nxg5 {[%emt 0:09:26]} 24. Bxg5 {[%emt 0:00:14]} Qxg5 {[%emt 0:00:08]} 25. Qh7+ {[%emt 0:00:29]} Kf8 {[%emt 0:00:05]} 26. Qh8+ {[%emt 0:03:52]} Ke7 {[%emt 0:00:27]} 27. Re4+ {[%emt 0:00:30]} Be6 {[%emt 0:00:07]} 28. Qd4 {[%emt 0:02:06]} Kd7 {[%emt 0:00:22]} 29. dxe6+ {[%emt 0:00:51]} Rxe6 {[%emt 0:00:05]} 30. Rxe6 {[%emt 0:02:41]} fxe6 {[%emt 0:00:14]} 31. Rh7+ {[%emt 0:00:24]} Kc6 {[%emt 0:00:13]} 32. Rg7 {[%emt 0:11:43]} Qd5 {[%emt 0:03:39]} 33. Rxg4 {[%emt 0:02:50]} Qxd4 {[%emt 0:04:06]} 34. exd4 {[%emt 0:03:30]} Rh8 {[%emt 0:00:34]} 35. Kb2 {[%emt 0:09:21]} Rh1 {[%emt 0:02:37]} 36. Rg6 {[%emt 0:04:28]} Re1 {[%emt 0:00:16]} 37. f4 {[%emt 0:00:33]} a5 {[%emt 0:00:50]} 38. a3 {[%emt 0:00:31]} Re2+ {[%emt 0:00:32]} 39. Kb1 {[%emt 0:00:27]} b4 {[%emt 0:01:43]} 40. axb4 {[%emt 0:00:00]} axb4 {[%emt 0:00:00]} 41. cxb4 {[%emt 0:00:44]} Kb5 {[%emt 0:00:54]} 42. d5 {[%emt 0:08:19]} exd5 {[%emt 0:01:20]} 43. Rxd6 {[%emt 0:00:34]} c3 {[%emt 0:00:13]} 44. Rxd5+ {[%emt 0:05:46]} Kc4 {[%emt 0:00:05]} 0-1

[Event "Cracovia Festival-A 2023"]
[Site "Krakow"]
[Date "2023.12.28"]
[Round "2.34"]
[White "Baum, Jonasz"]
[Black "Leskiewicz, Ignacy"]
[Result "1-0"]
[ECO "C41"]
[WhiteElo "2421"]
[BlackElo "2177"]
[Annotator "ChessBase"]
[PlyCount "81"]
[EventDate "2023.12.24"]
[EventType "swiss"]
[EventCountry "POL"]
[SourceTitle "playchess.com"]
[Source "ChessBase"]
[SourceQuality "1"]
[TimeControl "40/5400+30:1800+30"]

1. e4 {[%emt 0:00:01]} d6 {[%emt 0:00:28]} 2. d4 {[%emt 0:00:11]} Nf6 {[%emt 0:00:04]} 3. Nc3 {[%emt 0:00:04]} e5 {[%emt 0:00:06]} 4. Nf3 {[%emt 0:00:51]} Nbd7 {[%emt 0:02:58]} 5. Bc4 {[%emt 0:00:18]} Be7 {[%emt 0:09:59]} 6. O-O {[%emt 0:00:11]} O-O {[%emt 0:01:04]} 7. Re1 {[%emt 0:00:03]} c6 {[%emt 0:02:35]} 8. a4 {[%emt 0:00:05]} h6 {[%emt 0:08:31]} 9. h3 {[%emt 0:01:50]} Re8 {[%emt 0:07:15]} 10. Be3 {[%emt 0:02:19]} Bf8 {[%emt 0:02:22]} 11. dxe5 {[%emt 0:01:45]} dxe5 {[%emt 0:06:39]} 12. Qe2 {[%emt 0:05:19]} Qc7 {[%emt 0:05:23]} 13. Nh4 {[%emt 0:10:26]} Nc5 {[%emt 0:11:41]} 14. Qf3 {[%emt 0:06:21]} Be6 {[%emt 0:04:18]} 15. Bf1 {[%emt 0:07:13]} Nh7 {[%emt 0:06:47]} 16. Qg3 {[%emt 0:04:14]} Kh8 {[%emt 0:07:03]} 17. Nf3 {[%emt 0:00:47]} Nf6 {[%emt 0:08:49]} 18. Nxe5 {[%emt 0:06:36]} Bd6 {[%emt 0:02:35]} 19. Bxc5 {[%emt 0:01:08]} Bxe5 {[%emt 0:00:06]} 20. Qe3 {[%emt 0:03:41]} Bh2+ {[%emt 0:03:28]} 21. Kh1 {[%emt 0:00:11]} Bf4 {[%emt 0:00:06]} 22. Qf3 {[%emt 0:01:11]} Rad8 {[%emt 0:02:06]} 23. Be3 {[%emt 0:07:58]} Be5 {[%emt 0:00:27]} 24. a5 {[%emt 0:01:12]} b5 {[%emt 0:02:54]} 25. axb6 {[%emt 0:00:05]} axb6 {[%emt 0:00:04]} 26. Ra6 {[%emt 0:02:35]} b5 {[%emt 0:01:36]} 27. Rea1 {[%emt 0:05:29]} Rb8 {[%emt 0:02:10]} 28. Bd3 {[%emt 0:02:53]} b4 {[%emt 0:00:52]} 29. Na4 {[%emt 0:01:02]} b3 {[%emt 0:00:11]} 30. c3 {[%emt 0:00:32]} Ra8 {[%emt 0:01:24]} 31. Nc5 {[%emt 0:00:46]} Rxa6 {[%emt 0:00:05]} 32. Rxa6 {[%emt 0:00:09]} Rd8 {[%emt 0:01:24]} 33. Nxe6 {[%emt 0:01:26]} fxe6 {[%emt 0:00:02]} 34. Bb6 {[%emt 0:00:08]} Rxd3 {[%emt 0:01:05]} 35. Qxd3 {[%emt 0:00:16]} Qb7 {[%emt 0:00:19]} 36. Qd8+ {[%emt 0:00:31]} Kh7 {[%emt 0:00:15]} 37. Ra7 {[%emt 0:00:05]} Qb8 {[%emt 0:00:23]} 38. Qxb8 {[%emt 0:00:26]} Bxb8 {[%emt 0:00:01]} 39. Rb7 {[%emt 0:01:26]} Be5 {[%emt 0:00:21]} 40. f3 {[%emt 0:00:00]} Nh5 {[%emt 0:00:00]} 41. Bf2 {[%emt 0:00:36]} 1-0

[Event "Cracovia Festival-A 2023"]
[Site "Krakow"]
[Date "2023.12.28"]
[Round "2.35"]
[White "Kovalevsky, Stanislav"]
[Black "Cukrowski, Filip"]
[Result "0-1"]
[ECO "B22"]
[WhiteElo "2163"]
[BlackElo "2402"]
[Annotator "ChessBase"]
[PlyCount "118"]
[EventDate "2023.12.24"]
[EventType "swiss"]
[EventCountry "POL"]
[SourceTitle "playchess.com"]
[Source "ChessBase"]
[SourceQuality "1"]
[TimeControl "40/5400+30:1800+30"]

1. e4 {[%emt 0:00:02]} c5 {[%emt 0:03:56]} 2. c3 {[%emt 0:00:05]} d6 {[%emt 0:00:08]} 3. d4 {[%emt 0:00:20]} Nf6 {[%emt 0:00:08]} 4. dxc5 {[%emt 0:01:27]} Nc6 {[%emt 0:00:37]} 5. Qd3 {[%emt 0:00:47]} dxc5 {[%emt 0:00:46]} 6. Qxd8+ {[%emt 0:00:07]} Kxd8 {[%emt 0:04:06]} 7. f3 {[%emt 0:00:36]} Kc7 {[%emt 0:00:17]} 8. Be3 {[%emt 0:00:43]} e6 {[%emt 0:04:54]} 9. Nh3 {[%emt 0:17:59]} Be7 {[%emt 0:05:24]} 10. a4 {[%emt 0:15:49]} b6 {[%emt 0:01:53]} 11. Na3 {[%emt 0:00:47]} a6 {[%emt 0:02:02]} 12. Nc4 {[%emt 0:13:21]} e5 {[%emt 0:02:10]} 13. Ng5 {[%emt 0:03:45]} Rf8 {[%emt 0:00:14]} 14. a5 {[%emt 0:00:17]} bxa5 {[%emt 0:10:07]} 15. Nxa5 {[%emt 0:01:35]} h6 {[%emt 0:00:13]} 16. Nh3 {[%emt 0:01:29]} Rb8 {[%emt 0:12:47]} 17. Nxc6 {[%emt 0:08:54]} Kxc6 {[%emt 0:00:02]} 18. Nf2 {[%emt 0:00:08]} Nd7 {[%emt 0:04:31]} 19. Bxa6 {[%emt 0:11:45]} Rxb2 {[%emt 0:07:10]} 20. O-O {[%emt 0:00:07]} Bxa6 {[%emt 0:04:14]} 21. Rxa6+ {[%emt 0:00:02]} Rb6 {[%emt 0:00:30]} 22. Ra7 {[%emt 0:01:14]} Rfb8 {[%emt 0:04:31]} 23. Rd1 {[%emt 0:05:42]} R8b7 {[%emt 0:00:50]} 24. Ra8 {[%emt 0:00:04]} Rb3 {[%emt 0:05:40]} 25. Rg8 {[%emt 0:07:10]} Bf8 {[%emt 0:05:18]} 26. Bd2 {[%emt 0:00:13]} Rb1 {[%emt 0:02:54]} 27. Kf1 {[%emt 0:00:11]} Kd6 {[%emt 0:03:24]} 28. Ke2 {[%emt 0:01:14]} Ke7 {[%emt 0:00:32]} 29. h4 {[%emt 0:06:31]} f6 {[%emt 0:00:59]} 30. h5 {[%emt 0:00:44]} Rxd1 {[%emt 0:00:20]} 31. Nxd1 {[%emt 0:00:44]} Kf7 {[%emt 0:02:29]} 32. Rh8 {[%emt 0:00:02]} Nb6 {[%emt 0:03:58]} 33. Ne3 {[%emt 0:00:41]} Ra7 {[%emt 0:01:00]} 34. Nf5 {[%emt 0:01:32]} Ra2 {[%emt 0:01:05]} 35. Kd3 {[%emt 0:00:01]} c4+ {[%emt 0:04:17]} 36. Ke2 {[%emt 0:00:01]} Na4 {[%emt 0:00:08]} 37. Ke1 {[%emt 0:00:37]} Nb2 {[%emt 0:00:37]} 38. Nh4 {[%emt 0:00:46]} Nd3+ {[%emt 0:00:19]} 39. Kd1 {[%emt 0:00:20]} Ra1+ {[%emt 0:02:35]} 40. Ke2 {[%emt 0:00:00]} Rh1 {[%emt 0:00:00]} 41. Ng6 {[%emt 0:04:11]} Bc5 {[%emt 0:07:05]} 42. g4 {[%emt 0:03:00]} Nb2 {[%emt 0:07:21]} 43. Rc8 {[%emt 0:06:27]} Rh2+ {[%emt 0:01:31]} 44. Ke1 {[%emt 0:00:27]} Bf2+ {[%emt 0:00:30]} 45. Kf1 {[%emt 0:00:46]} Nd3 {[%emt 0:02:19]} 46. Rxc4 {[%emt 0:11:44]} Bc5 {[%emt 0:00:07]} 47. Be1 {[%emt 0:00:04]} Ra2 {[%emt 0:01:02]} 48. f4 {[%emt 0:04:15]} Ra5 {[%emt 0:03:48]} 49. fxe5 {[%emt 0:00:27]} fxe5 {[%emt 0:00:27]} 50. Ke2 {[%emt 0:02:30]} Nb2 {[%emt 0:01:08]} 51. Nxe5+ {[%emt 0:02:06]} Ke6 {[%emt 0:00:02]} 52. Rd4 {[%emt 0:00:08]} Kxe5 {[%emt 0:06:38]} 53. Kf3 {[%emt 0:00:01]} Ke6 {[%emt 0:02:04]} 54. Rd5 {[%emt 0:00:02]} Nc4 {[%emt 0:00:38]} 55. g5 {[%emt 0:02:06]} Ne5+ {[%emt 0:01:54]} 56. Kf4 {[%emt 0:00:01]} hxg5+ {[%emt 0:00:18]} 57. Kxg5 {[%emt 0:00:01]} Be3+ {[%emt 0:01:21]} 58. Kh4 {[%emt 0:00:37]} Ra1 {[%emt 0:00:35]} 59. Bd2 {[%emt 0:01:29]} Bxd2 {[%emt 0:00:11]} 0-1

[Event "Cracovia Festival-A 2023"]
[Site "Krakow"]
[Date "2023.12.28"]
[Round "2.36"]
[White "Pyrig, Roman"]
[Black "Niedbala, Bartlomiej"]
[Result "1/2-1/2"]
[ECO "C11"]
[WhiteElo "2154"]
[BlackElo "2393"]
[Annotator "ChessBase"]
[PlyCount "244"]
[EventDate "2023.12.24"]
[EventType "swiss"]
[EventCountry "POL"]
[SourceTitle "playchess.com"]
[Source "ChessBase"]
[SourceQuality "1"]
[TimeControl "40/5400+30:1800+30"]

1. e4 {[%emt 0:04:08]} e6 {[%emt 0:02:42]} 2. d4 {[%emt 0:00:06]} d5 {[%emt 0:00:04]} 3. Nc3 {[%emt 0:00:05]} Nf6 {[%emt 0:00:07]} 4. Bg5 {[%emt 0:00:06]} dxe4 {[%emt 0:04:38]} 5. Nxe4 {[%emt 0:00:39]} Nbd7 {[%emt 0:00:02]} 6. Nf3 {[%emt 0:03:37]} h6 {[%emt 0:00:30]} 7. Bh4 {[%emt 0:06:05]} Be7 {[%emt 0:01:34]} 8. Nxf6+ {[%emt 0:00:07]} Nxf6 {[%emt 0:01:05]} 9. Bb5+ {[%emt 0:01:19]} c6 {[%emt 0:00:31]} 10. Bd3 {[%emt 0:00:36]} Qb6 {[%emt 0:01:04]} 11. Qc1 {[%emt 0:05:38]} c5 {[%emt 0:09:57]} 12. c3 {[%emt 0:01:19]} Bd7 {[%emt 0:06:43]} 13. dxc5 {[%emt 0:03:54]} Qxc5 {[%emt 0:02:18]} 14. Qe3 {[%emt 0:09:31]} Qxe3+ {[%emt 0:02:51]} 15. fxe3 {[%emt 0:00:03]} Bc5 {[%emt 0:05:55]} 16. Ke2 {[%emt 0:05:04]} Ng4 {[%emt 0:15:20]} 17. h3 {[%emt 0:05:30]} Nf6 {[%emt 0:01:21]} 18. Ne5 {[%emt 0:03:00]} Nd5 {[%emt 0:00:33]} 19. Rhf1 {[%emt 0:10:20]} f6 {[%emt 0:00:02]} 20. Nxd7 {[%emt 0:09:01]} Kxd7 {[%emt 0:00:02]} 21. Bb5+ {[%emt 0:00:02]} Ke7 {[%emt 0:04:35]} 22. e4 {[%emt 0:01:37]} Nc7 {[%emt 0:02:05]} 23. Bc4 {[%emt 0:02:42]} Bd6 {[%emt 0:01:45]} 24. Rad1 {[%emt 0:04:56]} Rhc8 {[%emt 0:02:20]} 25. Rf3 {[%emt 0:02:06]} a6 {[%emt 0:01:58]} 26. Rfd3 {[%emt 0:04:44]} Ne8 {[%emt 0:00:17]} 27. Bb3 {[%emt 0:00:42]} Rc7 {[%emt 0:01:37]} 28. a4 {[%emt 0:04:17]} Be5 {[%emt 0:01:22]} 29. Bf2 {[%emt 0:02:59]} Nd6 {[%emt 0:02:53]} 30. Bb6 {[%emt 0:01:18]} Rc6 {[%emt 0:03:15]} 31. Ba5 {[%emt 0:00:40]} g5 {[%emt 0:02:59]} 32. Bb4 {[%emt 0:01:28]} a5 {[%emt 0:00:02]} 33. Ba3 {[%emt 0:00:01]} h5 {[%emt 0:01:03]} 34. Bc2 {[%emt 0:04:49]} Rg8 {[%emt 0:00:49]} 35. b4 {[%emt 0:04:37]} axb4 {[%emt 0:01:35]} 36. Bxb4 {[%emt 0:00:00]} g4 {[%emt 0:00:02]} 37. Kf2 {[%emt 0:00:01]} b6 {[%emt 0:01:18]} 38. R3d2 {[%emt 0:01:49]} Rd8 {[%emt 0:05:42]} 39. hxg4 {[%emt 0:00:08]} hxg4 {[%emt 0:00:04]} 40. Rh1 {[%emt 0:00:00]} Kf7 {[%emt 0:00:00]} 41. Rhd1 {[%emt 0:06:01]} Bf4 {[%emt 0:06:23]} 42. Rd4 {[%emt 0:00:36]} Be5 {[%emt 0:04:01]} 43. R4d2 {[%emt 0:00:02]} Kg7 {[%emt 0:00:35]} 44. Ke2 {[%emt 0:02:51]} Kf8 {[%emt 0:06:20]} 45. Bd3 {[%emt 0:03:23]} Ke7 {[%emt 0:07:56]} 46. Bb5 {[%emt 0:01:33]} Rcc8 {[%emt 0:01:49]} 47. c4 {[%emt 0:08:07]} Bf4 {[%emt 0:00:51]} 48. Rd3 {[%emt 0:00:38]} Be5 {[%emt 0:00:53]} 49. a5 {[%emt 0:04:13]} bxa5 {[%emt 0:00:20]} 50. Bxa5 {[%emt 0:00:01]} Rh8 {[%emt 0:00:13]} 51. Bb4 {[%emt 0:00:05]} Rcd8 {[%emt 0:02:25]} 52. Bc6 {[%emt 0:02:15]} f5 {[%emt 0:03:52]} 53. c5 {[%emt 0:01:46]} Nf7 {[%emt 0:03:04]} 54. Rd7+ {[%emt 0:02:18]} Kf6 {[%emt 0:01:05]} 55. exf5 {[%emt 0:00:35]} exf5 {[%emt 0:00:04]} 56. Ba5 {[%emt 0:01:50]} Rde8 {[%emt 0:00:47]} 57. Kd3 {[%emt 0:01:43]} Rb8 {[%emt 0:02:30]} 58. Bd5 {[%emt 0:01:41]} Ng5 {[%emt 0:00:14]} 59. Bb6 {[%emt 0:00:41]} g3 {[%emt 0:01:07]} 60. Kc4 {[%emt 0:00:30]} Ne6 {[%emt 0:01:20]} 61. Bb7 {[%emt 0:00:33]} Rh4+ {[%emt 0:01:02]} 62. Kb5 {[%emt 0:00:27]} Bc3 {[%emt 0:00:02]} 63. R1d6 {[%emt 0:00:29]} Rb4+ {[%emt 0:00:53]} 64. Kc6 {[%emt 0:00:04]} Be5 {[%emt 0:00:13]} 65. Rd5 {[%emt 0:01:00]} f4 {[%emt 0:01:33]} 66. Rd3 {[%emt 0:00:22]} Rb2 {[%emt 0:00:37]} 67. Ba7 {[%emt 0:00:41]} Rg8 {[%emt 0:01:51]} 68. Rd2 {[%emt 0:00:00]} f3 {[%emt 0:00:54]} 69. Rxb2 {[%emt 0:00:01]} Bxb2 {[%emt 0:00:19]} 70. Rd2 {[%emt 0:01:01]} Bc3 {[%emt 0:02:23]} 71. Ra2 {[%emt 0:00:23]} fxg2 {[%emt 0:02:34]} 72. Rxg2 {[%emt 0:00:05]} Nf4 {[%emt 0:00:02]} 73. Rg1 {[%emt 0:00:57]} Bd4 {[%emt 0:00:32]} 74. Rf1 {[%emt 0:01:01]} g2 {[%emt 0:00:32]} 75. Rxf4+ {[%emt 0:00:01]} Ke5 {[%emt 0:00:01]} 76. Rxd4 {[%emt 0:00:01]} g1=Q {[%emt 0:00:52]} 77. Rd5+ {[%emt 0:00:01]} Ke6 {[%emt 0:00:27]} 78. Rd6+ {[%emt 0:00:11]} Ke7 {[%emt 0:00:01]} 79. Rd7+ {[%emt 0:01:02]} Ke8 {[%emt 0:00:00]} 80. Kc7 {[%emt 0:01:13]} Rg7 {[%emt 0:02:36]} 81. Rxg7 {[%emt 0:00:49]} Qxg7+ {[%emt 0:00:02]} 82. Kb8 {[%emt 0:00:15]} Qe5+ {[%emt 0:01:06]} 83. Ka8 {[%emt 0:00:04]} Qa1 {[%emt 0:01:50]} 84. Kb8 {[%emt 0:00:31]} Qe5+ {[%emt 0:00:42]} 85. Ka8 {[%emt 0:00:02]} Qf6 {[%emt 0:01:29]} 86. Bb6 {[%emt 0:00:20]} Qd4 {[%emt 0:00:49]} 87. Ka7 {[%emt 0:00:35]} Qa1+ {[%emt 0:00:30]} 88. Kb8 {[%emt 0:00:16]} Qb2 {[%emt 0:00:22]} 89. Ka7 {[%emt 0:00:47]} Qa3+ {[%emt 0:00:06]} 90. Kb8 {[%emt 0:00:06]} Qb4 {[%emt 0:00:05]} 91. Ka7 {[%emt 0:01:22]} Qa4+ {[%emt 0:00:22]} 92. Kb8 {[%emt 0:00:02]} Qb5 {[%emt 0:00:18]} 93. Ka7 {[%emt 0:00:08]} Qa4+ {[%emt 0:00:40]} 94. Kb8 {[%emt 0:00:02]} Qf4+ {[%emt 0:01:00]} 95. Bc7 {[%emt 0:00:48]} Qf8 {[%emt 0:00:59]} 96. c6 {[%emt 0:01:34]} Ke7+ {[%emt 0:00:16]} 97. Ka7 {[%emt 0:00:13]} Qh8 {[%emt 0:00:34]} 98. Ba6 {[%emt 0:01:33]} Qc3 {[%emt 0:00:26]} 99. Kb7 {[%emt 0:00:26]} Qf3 {[%emt 0:00:51]} 100. Ba5 {[%emt 0:00:34]} Qd5 {[%emt 0:00:29]} 101. Bc7 {[%emt 0:00:23]} Qe4 {[%emt 0:00:27]} 102. Bb6 {[%emt 0:00:26]} Qd5 {[%emt 0:00:02]} 103. Bc7 {[%emt 0:00:32]} Ke6 {[%emt 0:00:22]} 104. Bb8 {[%emt 0:00:29]} Qb3+ {[%emt 0:00:24]} 105. Ka7 {[%emt 0:00:18]} Qe3+ {[%emt 0:00:30]} 106. Kb7 {[%emt 0:00:03]} Qe4 {[%emt 0:00:42]} 107. Kb6 {[%emt 0:01:21]} Qb4+ {[%emt 0:00:37]} 108. Ka7 {[%emt 0:00:31]} Qc5+ {[%emt 0:00:20]} 109. Kb7 {[%emt 0:00:02]} Qd5 {[%emt 0:00:05]} 110. Kb6 {[%emt 0:00:13]} Qb3+ {[%emt 0:00:27]} 111. Ka7 {[%emt 0:00:16]} Qe3+ {[%emt 0:00:12]} 112. Kb7 {[%emt 0:00:19]} Qf3 {[%emt 0:00:18]} 113. Bc4+ {[%emt 0:00:12]} Ke7 {[%emt 0:00:01]} 114. Ba6 {[%emt 0:00:30]} Kd8 {[%emt 0:00:39]} 115. Bc7+ {[%emt 0:00:02]} Ke8 {[%emt 0:00:02]} 116. Bb5 {[%emt 0:00:54]} Qd5 {[%emt 0:00:46]} 117. Ka6 {[%emt 0:01:20]} Ke7 {[%emt 0:00:08]} 118. Ba5 {[%emt 0:00:54]} Kd6 {[%emt 0:00:01]} 119. c7 {[%emt 0:00:26]} Qf5 {[%emt 0:02:04]} 120. Bb6 {[%emt 0:00:47]} Qc8+ {[%emt 0:02:41]} 121. Ka7 {[%emt 0:00:02]} Qxc7+ {[%emt 0:00:12]} 122. Bxc7+ {[%emt 0:00:02]} Kxc7 1/2-1/2